bitfinex/quotes_ETHUSD_20251110
["timestamp","ask_amount","ask_price","bid_price","bid_amount"]
[1762737339307,10.40184002,3638.6,3638.5,0.001]
[1762737340603,10.40184002,3638.6,3636.6,0.001]
[1762737340909,2.74904445,3637.7,3636.6,0.001]
[1762737341218,2.40403728,3638.5,3636.6,0.001]
[1762737341219,0.25632128,3637.6,3636.7,0.3499]
[1762737341422,0.198,3637.8,3636.7,0.71710216]
[1762737341586,0.25564434,3637.7,3637.0,2.74950036]
[1762737341788,0.25564434,3637.7,3636.8,0.37428713]
[1762737341789,1.259712,3638.1,3637.1,2.74943817]
[1762737341998,0.25563298,3638.0,3637.0,2.74951001]
[1762737342306,2.74912191,3637.6,3637.1,0.38134026]
[1762737342515,0.25560709,3637.5,3636.6,0.001]
[1762737342701,0.25560709,3637.4,3636.6,0.001]
[1762737342897,2.74958991,3637.0,3636.6,0.001]
[1762737343076,2.74914089,3637.5,3636.6,0.001]
[1762737343282,0.4825,3637.7,3636.6,0.001]
[1762737343283,0.25547766,3637.4,3636.6,0.001]
[1762737343484,2.74974564,3636.7,3636.6,0.001]
[1762737343879,3.24814564,3636.7,3636.6,0.001]
[1762737344080,3.73064564,3636.7,3636.6,0.001]
[1762737344285,0.4825,3637.4,3636.6,0.001]
[1762737344606,0.2553,3637.3,3636.6,0.001]
[1762737344779,1.259712,3637.8,3637.2,0.1027]
[1762737344981,0.25525504,3637.7,3636.7,0.3499]
[1762737345331,0.4825,3638.4,3637.2,2.74935158]
[1762737345630,2.74883627,3638.0,3637.3,2.74927755]
[1762737345829,0.198,3638.6,3637.4,0.1027]
[1762737346128,2.74877326,3638.0,3637.4,0.1027]
[1762737346329,2.74860909,3638.3,3637.5,2.74907485]
[1762737346630,2.74873777,3638.1,3637.4,3.52200216]
[1762737346827,0.198,3638.6,3637.4,0.42288753]
[1762737347002,0.25509481,3638.5,3637.4,2.85186483]
[1762737347206,0.25509481,3638.4,3637.4,0.1027]
[1762737347533,1.259712,3638.5,3637.4,0.1027]
[1762737347730,1.259712,3638.5,3637.1,0.001]
[1762737347731,2.74923151,3637.4,3637.2,0.1027]
[1762737348025,2.74929205,3637.3,3637.2,0.1027]
[1762737348250,2.74929205,3637.3,3637.1,0.001]
[1762737348445,2.74936764,3637.2,3637.1,0.1037]
[1762737348931,2.74936764,3637.2,3637.1,0.4536]
[1762737349146,3.29922756,3637.2,3637.1,0.001]
[1762737349300,3.78272756,3637.2,3637.1,0.001]
[1762737349505,3.29922756,3637.2,3637.1,0.001]
[1762737350053,0.54985992,3637.2,3637.1,0.001]
[1762737350344,2.74936764,3637.2,3637.1,0.001]
[1762737351635,2.74936764,3637.2,3637.1,0.1037]
[1762737352335,3.00475851,3637.2,3637.1,0.001]
[1762737353038,3.94405851,3637.2,3637.1,0.001]
[1762737353237,4.34956251,3637.2,3637.1,0.001]
[1762737353436,6.82805471,3637.2,3637.1,0.001]
[1762737356607,5.48325071,3637.2,3637.1,0.001]
[1762737358967,5.48325071,3637.2,3637.1,0.3509]
[1762737359166,3.00475851,3637.2,3637.1,0.001]
[1762737360566,4.34956251,3637.2,3637.1,0.001]
[1762737360754,3.00475851,3637.2,3637.1,0.001]
[1762737360954,6.18468329,3637.2,3637.1,0.001]
[1762737361154,5.72888329,3637.2,3637.1,0.001]
[1762737361469,6.18468329,3637.2,3637.1,0.001]
[1762737363256,4.00960887,3636.5,3636.4,0.001]
[1762737363572,5.22029974,3636.5,3636.4,0.001]
[1762737363773,6.44103454,3636.5,3636.4,0.001]
[1762737364173,5.54903054,3636.5,3636.4,0.001]
[1762737364379,4.26499974,3636.5,3636.4,0.001]
[1762737364877,0.25539087,3636.5,3636.4,0.3509]
[1762737365078,0.25539087,3636.5,3636.4,0.7008]
[1762737366139,0.1816,3637.9,3636.4,4.5508]
[1762737366338,0.4865,3638.3,3636.4,4.5508]
[1762737366339,0.25633214,3637.8,3636.5,0.37739896]
[1762737366577,2.74915693,3637.5,3636.6,2.74982126]
[1762737366781,2.74981244,3636.7,3636.4,0.001]
[1762737366981,0.25634269,3636.6,3636.4,0.001]
[1762737367183,0.25646842,3636.5,3636.4,0.001]
[1762737367350,1.441912,3637.9,3637.3,0.1027]
[1762737367549,2.7493446,3637.3,3636.4,3.14143769]
[1762737367779,0.25646804,3637.2,3636.4,3.14143769]
[1762737368076,0.27488534,3637.8,3636.4,3.14143769]
[1762737368077,2.74959025,3637.0,3636.5,1.06512679]
[1762737368375,0.1822,3637.9,3636.5,1.06512679]
[1762737368376,0.25646797,3636.9,3636.5,0.37739896]
[1762737368597,0.25646797,3636.8,3636.4,0.001]
[1762737368772,0.25646797,3636.7,3636.5,0.3499]
[1762737368943,0.25646797,3636.6,3636.5,0.3499]
[1762737369142,2.74946642,3637.1,3636.5,0.6998]
[1762737369143,2.74949126,3637.1,3636.5,0.6998]
[1762737369383,0.25658932,3637.0,3636.5,0.3499]
[1762737369539,0.25658932,3636.9,3636.6,0.3499]
[1762737369743,2.74846086,3638.4,3636.7,2.77724309]
[1762737369942,2.74904301,3637.7,3636.8,3.09954135]
[1762737370180,3.00511532,3638.3,3636.9,0.3499]
[1762737370181,3.00565446,3637.6,3636.9,0.3499]
[1762737370371,0.25657892,3637.5,3637.1,2.74941082]
[1762737370568,0.198,3638.6,3637.2,0.93478622]
[1762737370569,0.25657892,3637.4,3637.2,0.93478622]
[1762737370773,0.198,3638.6,3636.8,0.3499]
[1762737370774,2.74938544,3637.2,3636.8,0.3499]
[1762737370981,2.74861195,3638.2,3636.9,1.733212]
[1762737371160,0.25657227,3638.1,3636.9,0.4735]
[1762737371485,2.74928029,3637.4,3637.0,0.3499]
[1762737371663,2.74987486,3636.6,3636.4,0.001]
[1762737371847,2.74957742,3637.0,3636.5,0.6998]
[1762737372184,0.25660821,3636.9,3636.5,0.3499]
[1762737372483,2.74974634,3636.7,3636.5,0.3499]
[1762737372689,2.74974634,3636.7,3636.6,0.3499]
[1762737372876,0.25666752,3636.7,3636.6,0.3499]
[1762737373075,3.00641316,3636.7,3636.6,0.6998]
[1762737373382,2.74989687,3636.5,3636.4,0.001]
[1762737373679,3.00656439,3636.5,3636.4,0.001]
[1762737375262,3.58219539,3636.5,3636.4,0.001]
[1762737375964,3.58219539,3636.5,3636.4,0.3509]
[1762737375965,0.25666752,3636.5,3636.4,0.3509]
[1762737376285,0.25666752,3636.5,3636.4,4.2009]
[1762737376592,3.00656439,3636.5,3636.4,4.2009]
[1762737376887,3.14336439,3636.5,3636.4,3.851]
[1762737377468,3.62756439,3636.5,3636.4,3.851]
[1762737377681,4.26529563,3636.5,3636.4,3.851]
[1762737378272,4.75179563,3636.5,3636.4,3.851]
[1762737378679,4.75179563,3636.5,3636.4,0.001]
[1762737378859,5.15729963,3636.5,3636.4,0.001]
[1762737382132,4.26529563,3636.5,3636.4,0.001]
[1762737382281,4.75179563,3636.5,3636.4,0.001]
[1762737384008,6.41701163,3636.5,3636.4,0.001]
[1762737384797,3.00656439,3636.5,3636.4,0.001]
[1762737384999,3.49076439,3636.5,3636.4,0.001]
[1762737385883,3.00656439,3636.5,3636.4,0.001]
[1762737386788,4.38276839,3636.5,3636.4,0.001]
[1762737387006,5.64248039,3636.5,3636.4,0.001]
[1762737387223,5.99540323,3636.5,3636.4,0.001]
[1762737387430,6.48190323,3636.5,3636.4,0.001]
[1762737387640,4.41556666,3635.9,3635.6,0.001]
[1762737387841,5.31893418,3635.9,3635.6,0.001]
[1762737388131,6.39707338,3635.9,3635.6,0.001]
[1762737388338,2.75152036,3634.4,3634.0,0.1236]
[1762737388695,2.75152036,3634.4,3634.3,0.3499]
[1762737389094,2.75131595,3634.7,3634.3,0.6998]
[1762737389290,3.00791748,3634.6,3634.5,0.3499]
[1762737389510,2.7514055,3634.6,3634.5,0.3499]
[1762737389730,3.00791471,3634.6,3634.5,0.3499]
[1762737389936,0.25650921,3634.6,3634.5,0.3499]
[1762737390103,3.23725849,3635.4,3634.5,0.3499]
[1762737390304,2.75132351,3634.7,3634.5,0.3499]
[1762737390492,2.75133439,3634.6,3634.5,0.3499]
[1762737390887,2.75101679,3635.1,3634.5,0.6998]
[1762737391141,0.25641685,3635.0,3634.0,0.1236]
[1762737391318,2.751183,3634.8,3634.0,3.51281458]
[1762737391502,0.405504,3635.7,3634.7,0.3499]
[1762737391701,2.75116246,3634.9,3634.7,0.3499]
[1762737391891,0.25633358,3634.8,3634.7,0.3499]
[1762737392092,2.75096675,3635.1,3634.5,0.3499]
[1762737392287,0.46787654,3635.7,3634.7,0.3499]
[1762737392288,0.2563114,3635.0,3634.7,0.3499]
[1762737392492,2.75086863,3635.3,3634.6,2.75126453]
[1762737392724,2.75086863,3635.3,3635.2,0.4735]
[1762737392938,0.25624296,3635.3,3635.2,0.8234]
[1762737393438,3.00704757,3635.3,3635.2,0.1236]
[1762737393842,0.4562,3636.1,3635.2,0.1236]
[1762737393843,2.75051207,3635.7,3635.2,0.6797]
[1762737394042,0.25619231,3635.6,3635.2,0.4735]
[1762737394345,0.25619231,3635.6,3635.3,0.3499]
[1762737394542,2.74993051,3636.5,3635.5,0.3499]
[1762737394700,0.53135826,3636.4,3635.6,0.3499]
[1762737394901,2.75185926,3636.6,3635.6,0.3499]
[1762737394902,0.25616521,3636.3,3635.6,0.3499]
[1762737395146,0.25616521,3636.2,3635.6,0.3499]
[1762737395300,2.75050196,3635.7,3635.6,0.3499]
[1762737395505,2.75004559,3636.4,3635.6,0.3499]
[1762737395753,2.75050196,3635.7,3635.6,0.3499]
[1762737395902,0.27520456,3636.3,3635.6,0.3499]
[1762737396096,0.25615427,3636.2,3635.6,0.3499]
[1762737396432,2.75034103,3636.0,3635.6,0.6998]
[1762737396631,2.75035133,3635.9,3635.6,0.3499]
[1762737397127,0.1368,3636.0,3635.8,0.0715]
[1762737397532,0.25623166,3635.9,3635.3,0.1368]
[1762737397737,3.00664549,3635.9,3635.3,0.1368]
[1762737397936,1.715912,3636.5,3635.2,0.1236]
[1762737398141,2.75035066,3635.9,3634.2,0.3499]
[1762737398443,2.75101841,3635.1,3634.5,0.1368]
[1762737398631,0.1368,3635.2,3634.5,0.1368]
[1762737398804,2.88773536,3635.2,3634.6,1.259712]
[1762737399016,2.75112774,3634.9,3634.5,0.4867]
[1762737399316,0.1368,3635.2,3634.5,0.1368]
[1762737399511,0.1368,3635.2,3635.1,0.1236]
[1762737399716,0.1368,3635.2,3634.6,0.3499]
[1762737399717,2.75103697,3635.0,3634.6,0.3499]
[1762737400025,0.1368,3635.2,3634.6,0.3499]
[1762737400227,0.4562,3635.7,3634.5,0.1368]
[1762737400437,0.1368,3635.0,3634.6,2.75129516]
[1762737400639,0.1368,3635.0,3634.5,4.49780923]
[1762737400938,0.1368,3635.0,3634.9,0.3499]
[1762737401139,0.4562,3636.2,3634.9,0.3499]
[1762737401140,2.75041899,3635.9,3634.9,0.3499]
[1762737401438,0.4562,3636.2,3634.9,0.3499]
[1762737401439,0.2566795,3635.8,3634.9,0.3499]
[1762737401626,2.75080011,3635.4,3634.9,0.3499]
[1762737401830,0.2566795,3635.3,3634.9,0.3499]
[1762737402053,1.259712,3635.6,3634.9,0.3499]
[1762737402054,0.2566795,3635.2,3634.9,0.3499]
[1762737402256,0.4562,3636.1,3635.0,0.1236]
[1762737402457,0.4562,3636.1,3635.1,0.3499]
[1762737402458,0.2567618,3636.0,3635.1,0.3499]
[1762737402643,1.717912,3636.6,3635.1,0.3499]
[1762737402644,0.2567618,3635.9,3635.1,0.3499]
[1762737402845,3.00725575,3635.8,3635.1,0.3499]
[1762737403150,2.75263534,3635.6,3635.1,0.3499]
[1762737403560,0.002,3635.6,3635.1,0.6998]
[1762737403767,2.75263397,3635.6,3635.1,0.3499]
[1762737403974,2.75263397,3635.6,3635.5,0.3499]
[1762737403975,0.002,3635.6,3635.5,0.3499]
[1762737404265,0.002,3635.6,3635.5,3.10055328]
[1762737404463,0.002,3635.6,3635.5,0.6998]
[1762737404633,0.002,3635.6,3635.5,3.45045328]
[1762737404988,0.002,3635.6,3635.5,4.07057892]
[1762737405135,0.002,3635.6,3635.5,5.33029092]
[1762737405537,0.002,3636.0,3635.9,4.01006266]
[1762737405842,0.002,3636.0,3635.9,4.38746616]
[1762737406062,0.002,3636.0,3635.9,4.73736616]
[1762737406283,0.002,3636.0,3635.9,5.45864383]
[1762737406458,0.002,3637.0,3635.9,2.35839317]
[1762737406459,0.25672469,3636.9,3635.9,2.35839317]
[1762737406641,0.002,3638.5,3637.1,1.259712]
[1762737406973,0.002,3638.5,3638.4,0.4735]
[1762737407374,0.002,3638.5,3638.4,3.22196086]
[1762737407560,0.002,3638.5,3638.4,0.4735]
[1762737407939,0.002,3638.5,3638.4,3.22196086]
[1762737408141,0.002,3638.5,3638.4,3.57186086]
[1762737408371,0.002,3638.5,3638.4,5.59426295]
[1762737409263,0.002,3639.3,3638.8,4.41337473]
[1762737409474,0.002,3639.3,3639.2,3.56346067]
[1762737409700,0.002,3639.3,3639.2,3.91336067]
[1762737410676,0.002,3639.4,3639.3,4.41299716]
[1762737410876,0.0002,3639.4,3639.3,6.2637976]
[1762737411185,0.0002,3639.4,3639.3,6.67195792]
[1762737411386,0.0002,3639.4,3639.3,6.80875792]
[1762737412317,0.002,3639.8,3639.3,6.80875792]
[1762737412318,0.002,3639.8,3639.7,4.41269518]
[1762737412624,0.002,3640.7,3639.7,4.41269518]
[1762737412625,0.002,3640.7,3640.2,9.26229871]
[1762737412777,0.002,3640.7,3640.2,9.61219871]
[1762737412972,0.002,3640.7,3640.2,10.73920318]
[1762737413174,0.002,3640.7,3640.2,16.34297856]
[1762737413473,0.002,3640.7,3640.6,4.76191597]
[1762737413474,1e-08,3640.7,3640.6,4.76191597]
[1762737413712,1e-08,3640.7,3640.6,5.11181597]
[1762737413922,1e-08,3640.7,3640.6,6.33331576]
[1762737414101,1e-08,3640.7,3640.6,6.30584777]
[1762737414414,1e-08,3640.7,3640.6,6.67479192]
[1762737414627,1e-08,3640.7,3640.6,7.38168745]
[1762737414918,1e-08,3640.7,3640.6,7.7506316]
[1762737415212,1e-08,3640.7,3640.6,12.06292692]
[1762737415717,0.002,3642.0,3641.5,4.4113371]
[1762737416011,0.002,3642.0,3641.5,5.91261467]
[1762737416312,0.002,3642.0,3641.5,6.23505346]
[1762737416512,0.002,3642.0,3641.5,5.82689314]
[1762737416811,0.002,3642.0,3641.5,6.23505346]
[1762737417515,0.002,3642.0,3641.5,7.31089314]
[1762737417715,0.002,3642.0,3641.5,7.71905346]
[1762737417916,0.002,3642.0,3641.5,5.82689314]
[1762737418118,0.002,3642.0,3641.5,7.31089314]
[1762737418550,0.002,3642.0,3641.5,7.71905346]
[1762737418856,0.002,3642.0,3641.5,7.30989314]
[1762737419428,0.002,3642.0,3641.5,5.82689314]
[1762737419634,0.002,3642.0,3641.5,6.5941371]
[1762737419834,0.002,3642.0,3641.5,3.848016]
[1762737420045,0.002,3642.0,3641.5,6.5941371]
[1762737420253,0.002,3642.0,3641.5,6.2442371]
[1762737420418,0.1848,3641.9,3640.9,1.483]
[1762737420752,0.002,3642.0,3641.4,4.00590691]
[1762737420954,0.002,3642.0,3641.3,1.259712]
[1762737421139,0.002,3642.0,3641.3,2.74625396]
[1762737421346,0.002,3642.0,3641.4,3.85]
[1762737421658,0.002,3642.0,3641.2,9.21633495]
[1762737421659,0.002,3642.0,3641.5,8.58309431]
[1762737421841,0.002,3642.0,3641.5,8.5556331]
[1762737422047,0.002,3642.0,3641.5,5.86777232]
[1762737422251,0.002,3642.0,3641.5,5.109712]
[1762737422557,0.002,3642.0,3641.5,3.85]
[1762737422558,2.74590436,3641.8,3641.5,3.85]
[1762737422724,2.93434038,3641.9,3641.5,3.9868]
[1762737422923,2.74804569,3641.6,3641.5,3.9868]
[1762737423124,2.74614816,3641.5,3640.9,3.85]
[1762737423373,2.74614816,3641.5,3641.4,0.1368]
[1762737423548,0.5702491,3641.6,3641.4,0.1368]
[1762737423860,0.5702491,3641.6,3641.0,0.1368]
[1762737423861,2.74642272,3641.2,3641.0,0.1368]
[1762737424040,2.74642278,3641.1,3641.0,0.1368]
[1762737424237,2.74642278,3641.1,3640.9,3.85]
[1762737424238,2.74649821,3641.0,3640.9,3.85]
[1762737424558,0.4949,3641.4,3640.9,3.85]
[1762737424559,0.1368,3641.4,3640.9,3.85]
[1762737424781,0.002,3641.6,3641.3,0.3499]
[1762737424984,0.002,3641.6,3641.5,4.3557331]
[1762737425548,0.002,3641.6,3641.2,0.40816032]
[1762737425753,0.002,3641.6,3641.4,1.259712]
[1762737425953,0.002,3641.6,3641.4,2.74613325]
[1762737426704,0.002,3641.6,3641.5,3.85]
[1762737426887,0.002,3641.6,3641.5,4.1999]
[1762737427351,0.002,3641.6,3641.5,3.85]
[1762737427551,0.4881,3641.6,3641.5,3.85]
[1762737427775,3.72904569,3641.6,3641.5,3.85]
[1762737427991,1.6493441,3641.6,3640.8,3.85]
[1762737428189,0.4881,3641.6,3640.9,1.259712]
[1762737428759,0.002,3641.6,3640.9,1.259712]
[1762737429291,0.002,3641.6,3641.1,2.74636769]
[1762737429601,0.002,3641.6,3641.5,3.0960211]
[1762737430756,0.002,3641.6,3641.5,8.13704663]
[1762737431060,0.002,3641.6,3641.5,11.06859401]
[1762737431281,0.002,3641.6,3641.5,12.20169401]
[1762737431467,0.002,3641.6,3641.5,12.55159401]
[1762737432508,0.002,3641.6,3641.5,11.03812969]
[1762737432797,0.002,3641.6,3641.5,11.79619001]
[1762737433567,0.002,3644.0,3641.5,4.85016891]
[1762737433879,0.002,3645.0,3644.5,0.405504]
[1762737434068,0.4949,3646.2,3644.6,1.259712]
[1762737434401,3.23748937,3646.2,3645.2,2.74327129]
[1762737434609,2.7426644,3646.1,3645.3,2.74323598]
[1762737434795,0.1368,3646.0,3645.6,2.74297603]
[1762737434963,0.1368,3646.7,3646.0,0.1368]
[1762737435168,0.4949,3646.6,3645.7,0.44853298]
[1762737435407,0.4949,3646.6,3644.7,2.74371004]
[1762737435408,2.74280698,3645.9,3644.7,2.74371004]
[1762737435611,2.74325873,3645.3,3644.4,0.1456]
[1762737435955,2.7433412,3645.2,3644.4,0.1456]
[1762737436205,0.1885,3645.3,3644.4,0.1456]
[1762737436579,2.74333369,3645.2,3644.4,0.1456]
[1762737436806,2.74357485,3644.9,3644.4,0.1456]
[1762737437508,2.74349844,3645.0,3644.4,0.1456]
[1762737437670,2.74357778,3644.9,3644.4,0.1456]
[1762737437866,0.1885,3645.3,3644.4,2.889475]
[1762737438172,0.1905,3645.3,3644.4,0.59413298]
[1762737438367,0.1905,3645.3,3644.4,0.44853298]
[1762737438368,2.9337601,3645.3,3644.4,0.44853298]
[1762737438706,0.34286601,3645.2,3644.4,0.1456]
[1762737439009,2.74333369,3645.2,3644.0,0.405504]
[1762737439206,2.74361496,3644.9,3644.1,1.259712]
[1762737439365,2.74361496,3644.9,3644.5,2.74385273]
[1762737439366,0.2743615,3644.9,3644.5,2.74385273]
[1762737439566,0.002,3645.3,3644.6,0.02743785]
[1762737439806,0.002,3645.3,3644.9,2.74355949]
[1762737440000,0.002,3645.3,3645.1,2.74334711]
[1762737440214,0.002,3645.3,3645.0,3.1919749]
[1762737440413,0.002,3645.3,3645.1,2.74339396]
[1762737440628,0.002,3645.3,3643.9,0.1236]
[1762737440629,0.4949,3645.2,3643.9,0.1236]
[1762737440829,3.02343876,3644.8,3644.1,1.259712]
[1762737441037,3.02343876,3644.8,3643.9,0.1236]
[1762737441038,2.74383899,3644.6,3643.9,1.383312]
[1762737441213,2.74372691,3644.7,3643.9,0.1236]
[1762737441537,0.4949,3644.8,3643.9,0.1236]
[1762737441738,0.4949,3644.8,3643.2,7.08780695]
[1762737441942,2.74371004,3644.7,3643.3,1.482]
[1762737442239,2.74401084,3644.4,3643.5,1.259712]
[1762737442447,0.4949,3644.6,3643.3,1.482]
[1762737442603,0.6834,3644.9,3643.9,1.259712]
[1762737442804,0.6834,3644.9,3643.5,1.259712]
[1762737443061,0.6834,3644.9,3644.1,2.74415166]
[1762737443208,0.1885,3644.9,3643.9,2.74424274]
[1762737443435,2.74376899,3644.7,3644.0,1.259712]
[1762737443639,2.74378567,3644.6,3644.0,1.259712]
[1762737444121,2.74378567,3644.6,3643.4,4.00440102]
[1762737444122,2.74401958,3644.3,3643.4,4.00440102]
[1762737444440,2.74401958,3644.3,3643.4,1.259712]
[1762737444441,2.74417313,3644.1,3643.4,1.259712]
[1762737444626,2.74402466,3644.3,3643.3,2.74471005]
[1762737444627,3.23896361,3644.3,3643.5,2.74454199]
[1762737444827,0.4949,3644.3,3643.5,2.74454199]
[1762737445040,2.93127357,3646.0,3643.7,1.259712]
[1762737445252,0.1368,3644.3,3643.7,1.396512]
[1762737445416,0.1368,3644.3,3643.7,0.1368]
[1762737446131,0.1885,3643.8,3643.7,0.1368]
[1762737446752,0.1885,3643.8,3642.8,2.49133775]
[1762737446753,1.1695,3643.8,3642.8,1.23162575]
[1762737446919,1.3063,3643.8,3643.2,0.1368]
[1762737447104,0.4949,3643.7,3643.2,0.1368]
[1762737447319,2.74463119,3643.5,3643.2,0.1368]
[1762737447740,0.4949,3643.5,3643.2,0.1368]
[1762737448250,3.06972378,3643.8,3643.2,0.1368]
[1762737448460,0.3253,3643.8,3643.2,0.1368]
[1762737448971,0.4949,3644.3,3643.6,2.7444704]
[1762737449124,0.4949,3644.3,3643.3,0.02744764]
[1762737449125,0.1368,3644.3,3643.7,0.16424463]
[1762737449464,0.4949,3644.8,3643.9,2.74429477]
[1762737449465,2.74379931,3644.6,3643.9,2.74429477]
[1762737449762,3.23860297,3644.8,3644.0,2.74422204]
[1762737449934,2.23860297,3644.8,3644.0,2.74422204]
[1762737450262,2.74368779,3644.8,3644.1,0.1801]
[1762737450471,0.002,3645.3,3644.1,0.1801]
[1762737450755,0.002,3645.3,3644.3,2.74401119]
[1762737450756,2.74347793,3645.1,3644.3,2.74401119]
[1762737451054,2.74335971,3645.2,3644.5,2.74385214]
[1762737451272,0.002,3645.3,3644.1,0.1801]
[1762737451426,0.002,3645.3,3644.2,0.02744086]
[1762737451759,2.74333369,3645.2,3644.4,2.74386783]
[1762737451958,3.24018323,3645.3,3644.1,2.1176]
[1762737452163,2.74348771,3645.0,3644.3,2.74396216]
[1762737452367,0.002,3645.3,3644.3,0.76057201]
[1762737452665,0.453,3645.3,3644.1,0.1801]
[1762737452847,2.74339043,3645.2,3644.5,2.74386034]
[1762737453025,2.74341369,3645.1,3644.5,2.74386034]
[1762737453224,2.74341369,3645.1,3644.1,0.1801]
[1762737453225,0.453,3645.3,3644.1,0.1801]
[1762737453425,0.002,3645.3,3644.1,0.1801]
[1762737453662,2.74366767,3644.8,3643.8,1.482]
[1762737453827,2.74374294,3644.7,3643.8,1.482]
[1762737454027,2.94134294,3644.7,3644.0,2.74423463]
[1762737454435,0.1976,3644.7,3644.2,1.259712]
[1762737454747,0.1976,3644.7,3643.7,0.95595737]
[1762737454948,0.6486,3644.7,3643.4,5.30705943]
[1762737455149,3.39233207,3644.7,3643.5,1.259712]
[1762737455381,2.74414986,3644.2,3643.5,4.00431139]
[1762737455586,0.79023321,3644.6,3643.5,1.259712]
[1762737455884,0.451,3644.5,3643.9,0.001]
[1762737456093,2.74393675,3644.4,3643.9,0.001]
[1762737456302,2.74401119,3644.3,3643.9,0.001]
[1762737456480,2.74410394,3644.2,3643.9,0.001]
[1762737456682,0.451,3644.4,3643.9,0.001]
[1762737457362,0.1976,3644.7,3643.9,0.001]
[1762737457987,0.1976,3645.0,3644.0,2.74416335]
[1762737458157,0.1976,3645.0,3644.2,2.74408649]
[1762737458698,0.453,3645.7,3644.5,1.259712]
[1762737458857,0.453,3645.7,3644.3,0.48344011]
[1762737458858,2.74324755,3645.4,3644.7,2.74370594]
[1762737459058,2.74324755,3645.4,3644.8,2.74361911]
[1762737459391,2.74526753,3645.3,3644.7,2.743685]
[1762737459593,0.1388,3645.3,3644.7,2.880485]
[1762737460399,0.002,3645.7,3644.4,0.95595737]
[1762737460695,0.002,3645.7,3644.2,0.95595737]
[1762737460696,0.36,3644.5,3644.2,0.95595737]
[1762737461035,0.1976,3644.5,3643.9,0.95695737]
[1762737461189,2.74394199,3644.4,3643.9,0.95695737]
[1762737461702,2.74345916,3645.1,3643.9,0.95695737]
[1762737461703,0.1976,3644.8,3644.0,0.95595737]
[1762737461910,2.74377531,3644.7,3644.1,1.259712]
[1762737462107,2.7436612,3644.8,3644.1,2.94295254]
[1762737462355,0.54811199,3645.6,3644.1,2.94293685]
[1762737462495,0.4476,3646.6,3644.7,0.4559]
[1762737462804,0.1851,3648.0,3646.0,2.74273176]
[1762737462957,0.1851,3648.0,3646.4,4.00214289]
[1762737463162,0.1851,3648.0,3646.4,6.73524826]
[1762737463415,0.1851,3648.0,3646.4,5.77815718]
[1762737463713,0.4497,3648.6,3646.4,11.25727705]
[1762737464164,0.1099,3648.6,3648.4,2.74092189]
[1762737464363,0.1099,3648.6,3646.5,4.40757168]
[1762737464364,0.1911,3649.0,3647.3,0.40120871]
[1762737464677,0.1911,3650.0,3647.3,0.40120871]
[1762737464678,0.1976,3649.4,3647.7,0.405504]
[1762737464985,0.1976,3649.4,3647.9,1.259712]
[1762737465171,0.1976,3649.4,3648.9,2.74048352]
[1762737465357,0.1976,3649.4,3649.0,0.721]
[1762737465873,0.4365,3649.3,3649.0,0.721]
[1762737466105,2.74069985,3648.8,3647.5,2.74158674]
[1762737466404,0.27406999,3648.7,3647.7,2.74143122]
[1762737466696,2.74033125,3649.2,3647.8,2.94011161]
[1762737466896,0.4333,3649.3,3647.8,0.1988]
[1762737467104,0.4333,3649.3,3648.3,2.74093324]
[1762737467304,0.4333,3649.3,3647.8,0.1988]
[1762737467305,0.4333,3649.3,3648.4,0.72]
[1762737467506,0.4333,3649.3,3648.5,0.72]
[1762737467666,0.33710882,3649.2,3648.6,0.72]
[1762737467866,0.4333,3649.3,3648.7,0.72]
[1762737468099,0.4302,3649.2,3648.7,0.72]
[1762737468277,3.17057178,3649.2,3648.3,0.72]
[1762737468476,2.7405387,3649.0,3648.3,0.72]
[1762737468678,0.1992,3648.4,3647.8,0.72]
[1762737469001,0.1992,3648.4,3647.8,3.46136343]
[1762737469174,0.1992,3648.4,3647.8,0.72]
[1762737469375,0.1992,3648.4,3647.8,3.46131445]
[1762737469593,0.1992,3648.4,3647.8,3.46137565]
[1762737469791,0.1992,3648.4,3647.8,0.72]
[1762737470201,0.52834195,3648.4,3647.8,0.72]
[1762737470413,0.1368,3647.9,3647.8,0.72]
[1762737471220,0.1368,3647.9,3647.8,5.21289036]
[1762737471386,0.1368,3648.4,3648.3,4.00071465]
[1762737471703,0.3515,3649.9,3648.9,2.74053747]
[1762737471902,2.93085599,3650.0,3648.8,0.72]
[1762737471903,0.1368,3649.1,3648.8,0.72]
[1762737472103,0.1368,3649.1,3649.0,2.74047684]
[1762737472794,0.1368,3649.1,3649.0,2.68792684]
[1762737472989,0.1368,3649.1,3649.0,3.94763884]
[1762737473191,0.1991,3649.6,3649.1,1.259712]
[1762737473392,0.1368,3649.5,3649.4,3.99988846]
[1762737473794,0.1992,3649.8,3649.7,2.73995122]
[1762737473993,0.2719,3650.4,3649.7,0.72]
[1762737474327,0.2719,3650.4,3649.8,0.1368]
[1762737474484,0.6037,3649.8,3649.7,0.72]
[1762737474829,0.6037,3649.8,3649.7,3.45995122]
[1762737475031,0.1215,3649.8,3649.7,3.45995122]
[1762737475386,0.1215,3649.8,3649.7,0.72]
[1762737476436,0.6084,3649.8,3649.7,0.72]
[1762737476788,3.95706395,3649.8,3649.7,0.72]
[1762737476983,3.95706395,3649.8,3648.7,2.74070164]
[1762737476984,0.6084,3649.8,3648.2,2.92782755]
[1762737477185,2.7400263,3649.6,3648.3,0.719]
[1762737477462,0.2068,3649.7,3648.4,0.719]
[1762737477656,0.4708,3649.6,3648.7,1.259712]
[1762737477855,0.4708,3649.6,3648.7,0.719]
[1762737478065,0.1992,3648.8,3648.7,0.719]
[1762737478368,0.2153,3648.8,3648.3,2.74094379]
[1762737478543,0.4708,3648.7,3648.2,0.719]
[1762737479108,0.4708,3648.7,3648.2,3.46006463]
[1762737479353,0.4708,3648.7,3648.3,1.259712]
[1762737479562,0.4708,3648.7,3648.2,0.719]